Cogmind - Beta 16 @@@ ROGUE MODE // 2026.02.07 @ 10:26:34 Player: the Result: Destroyed by YI-UF0 with YI-UF0's Doublenader Performance ------------- Evolutions (0) 0 Regions Visited (4) 800 Robots Destroyed (32) 160 Value Destroyed (763) 763 Prototype IDs (39) 780 Alien Tech Used (0) 0 Bonus (300) 300 TOTAL SCORE: 2803 Bonus ------- Aligned with FarCom 300 Cogmind --------- Core Integrity 0/250 Matter 292/300 Energy 265/265 System Corruption 0% Temperature Cool (1) Movement Treading (160) Location -9/Mines Parts ------- > --- POWER (1) -------- Improved Ion Engine > --- PROPULSION (2) --- Light Treads Light Treads > --- UTILITY (2) ------ Large Storage Unit Seismic Detector > --- WEAPON (2) ------- Light Cannon Light Cannon > --- INVENTORY (15) --- Light Treads Light Treads Light Treads Light Treads Light Treads Light Treads Light Armor Plating Hacking Suite Assault Rifle Assault Rifle Assault Rifle Assault Rifle Rocket Launcher Datajack Makeshift Spear Peak State ------------ > --- POWER ------------ Improved Ion Engine > --- PROPULSION ------- Light Treads Light Treads > --- UTILITY ---------- Large Storage Unit Seismic Detector > --- WEAPON ----------- Light Cannon Rocket Launcher > --- INVENTORY -------- Light Treads Light Treads Light Treads Light Treads Light Treads Light Treads Light Armor Plating Hacking Suite Assault Rifle Assault Rifle Assault Rifle Assault Rifle Light Cannon Datajack Makeshift Spear [Rating: 11] Favorites ----------- Power Improved Ion Engine Engine Improved Ion Engine Propulsion Light Treads Treads Light Treads Utility Seismic Detector Device Seismic Detector Storage Large Storage Unit Protection Light Armor Plating Weapon Light Cannon Ballistic Gun Assault Rifle Ballistic Cannon Light Cannon Launcher Rocket Launcher Special Melee Weapon Datajack Build | -11 -10 -10 -10 -9 ------- Run | Yrd Mat Min Exi Min Slots Evolved . | . . . . . Power . | . . . . . Propulsion . | . . . . . Utility . | . . . . . Weapon . | . . . . . Parts Attached 23 | 7 12 3 . 1 Power 3 | 1 1 1 . . Engine 3 | 1 1 1 . . Core . | . . . . . Reactor . | . . . . . Propulsion 5 | 2 3 . . . Treads 5 | 2 3 . . . Leg . | . . . . . Wheel . | . . . . . Hover . | . . . . . Flight . | . . . . . Utility 5 | 2 2 1 . . Device 2 | 1 1 . . . Storage 2 | 1 1 . . . Processor . | . . . . . Hackware . | . . . . . Protection 1 | . . 1 . . Artifact . | . . . . . Weapon 10 | 2 6 1 . 1 Energy Gun . | . . . . . Energy Cannon . | . . . . . Ballistic Gun 5 | 2 3 . . . Ballistic Cannon 3 | . 2 1 . . Launcher 1 | . . . . 1 Special Weapon . | . . . . . Impact Weapon . | . . . . . Slashing Weapon . | . . . . . Piercing Weapon . | . . . . . Special Melee Weapon 1 | . 1 . . . Unidentified Prototypes . | . . . . . Parts Lost 2 | . 2 . . . Power . | . . . . . Propulsion . | . . . . . Utility . | . . . . . Weapon 2 | . 2 . . . Highest Loss Streak 1 | . 1 . . . To Critical Strikes . | . . . . . Average Backups 12 | 3 10 14 14 14 Power . | 1 . . . . Propulsion 4 | . 3 6 6 6 Utility 2 | . 2 2 2 2 Weapon 4 | 1 3 5 5 5 Tool/Special . | . . . . . Unused Backups 14 | 1 1 . . 12 Power 1 | 1 . . . . Propulsion 6 | . . . . 6 Utility 2 | . 1 . . 1 Weapon 5 | . . . . 5 Tool/Special . | . . . . . Average Slot Usage (%) 99 | . 99 100 100 100 Engine 13 | . 13 14 14 14 Treads 28 | . 28 28 28 28 Device 13 | . 14 11 14 13 Storage 14 | . 14 14 14 14 Ballistic Gun 9 | . 22 1 . . Ballistic Cannon 16 | . 5 26 20 21 Launcher 1 | . . . . 6 Special Melee Weapon 1 | . . . 7 . Peak Build Rating 11 | 7 9 10 9 11 Average Rating 8 | 6 8 9 9 10 On Entrance 6 | . 7 9 9 9 Avg Prop Armor Cover (%) . | . . . . . Naked Turns . | . . . . . Heaviest Build 37 | 14 33 37 34 35 Greatest Support 40 | 40 40 40 40 40 Greatest Overweight (x) . | . . . . . Average Overweight (x) . | . . . . . Largest Inventory Capacity 15 | 8 15 15 15 15 Average Capacity 14 | 7 14 15 15 15 Most Carried 15 | 6 15 15 14 15 Average Carried 12 | 3 10 14 14 14 Final Capacity 15 | 8 15 15 15 15 Final Carried 15 | 5 15 14 14 15 Class Distribution -------------------- 100% | Mutant Dominant Class ---------------- Mutant | -10/Materials Mutant | -10/Mines Mutant | -10/Exiles Mutant | -9/Mines Resources | -11 -10 -10 -10 -9 ----------- Run | Yrd Mat Min Exi Min Matter Collected 1141 | 379 489 133 20 120 Remotely . | . . . . . Salvage Created 999 | 246 692 61 . . Parts 70 | 23 45 2 . . Haulers Intercepted 2 | . 2 . . . Recyclers Shooed 1 | . 1 . . . Parts Field Recycled . | . . . . . Retrieved Matter . | . . . . . Parts Self-Destructed . | . . . . . Prevented . | . . . . . Parts Restored . | . . . . . Kills | -11 -10 -10 -10 -9 ------- Run | Yrd Mat Min Exi Min Combat Hostiles Destroyed 17 | . 14 3 . . Guns 15 | . 14 1 . . Cannons 2 | . . 2 . . Classes Destroyed 9 | 2 5 2 . . Worker 1 | . 1 . . . Tunneler 8 | 7 1 . . . Hauler 2 | . 2 . . . Recycler 2 | 1 1 . . . Operator 1 | . 1 . . . Watcher 1 | . 1 . . . Grunt 14 | . 14 . . . Sentry 2 | . . 2 . . Demolisher 1 | . . 1 . . Best Kill Streak 3 | 3 2 3 . . Combat Bots Only 3 | . 2 3 . . Max Kills in Single Turn 1 | 1 1 1 . . Gunslinging . | . . . . . Exploded . | . . . . . Melee . | . . . . . Uniques/NPCs Destroyed . | . . . . . Combat | -11 -10 -10 -10 -9 -------- Run | Yrd Mat Min Exi Min Hostile Shots Fired 119 | . 82 35 . 2 Missed 28 | . 24 4 . . Hits 91 | . 58 31 . 2 Projectile 91 | . 58 31 . 2 AOE 7 | . . 4 . 3 Critical Strikes 2 | . . 2 . . Damage Taken 1299 | . 706 527 . 66 Core 255 | . 105 112 . 38 Absorbed by Shields . | . . . . . Regen/Repaired (Parts) 39 | . 39 . . . Core Remaining (%) 100 | 100 . . . . Volleys Fired 140 | 30 73 15 21 1 Largest 2 | 2 2 2 1 2 Hottest 60 | 40 60 60 30 60 Shots Fired 257 | 60 144 30 21 2 Gun 213 | 60 138 15 . . Cannon 44 | . 6 15 21 2 Launcher . | . . . . . Special . | . . . . . Kinetic 257 | 60 144 30 21 2 Thermal . | . . . . . Explosive . | . . . . . Electromagnetic . | . . . . . Robot Hit Streak 10 | 6 10 8 . 4 Robot Miss Streak 7 | 3 7 3 . 1 Penetration Max . | . . . . . Secondary Targets 2 | . 2 . . . Max Gunslinging Chain 1 | . 1 . . . Shots Hit Robots 152 | 33 94 21 3 1 Core Hits 58 | 13 40 5 . . Critical Kills . | . . . . . Critical Parts Destroyed 1 | . 1 . . . Critical Strikes 2 | . 2 . . . Destroy 1 | . 1 . . . Blast 1 | . 1 . . . Melee Attacks 6 | . 3 . 3 . Impact . | . . . . . Slashing . | . . . . . Piercing . | . . . . . Sneak Attacks 6 | . 3 . 3 . Combat Hostiles . | . . . . . Follow-up Attacks . | . . . . . Damage Inflicted 2012 | 356 1210 423 . 23 Guns 1703 | 356 1144 203 . . Cannons 246 | . 36 192 . 18 Explosions . | . . . . . Melee . | . . . . . Ramming 63 | . 30 28 . 5 Kinetic 1949 | 356 1180 395 . 18 Thermal . | . . . . . Explosive . | . . . . . Electromagnetic . | . . . . . Impact . | . . . . . Slashing . | . . . . . Piercing . | . . . . . Highest Corruption . | . . . . . Average Corruption . | . . . . . Corruption Purged . | . . . . . Corruption Blocked . | . . . . . Overload Shots . | . . . . . Overflow Damage . | . . . . . Projectiles . | . . . . . Explosions . | . . . . . Melee . | . . . . . Knockbacks 1 | . 1 . . . Impact . | . . . . . Kinetic 1 | . 1 . . . Secondary . | . . . . . Self-Inflicted Damage . | . . . . . Shots . | . . . . . Rammed 7 | . 3 2 . 2 Targets Rammed 8 | . 4 2 . 2 Kicked . | . . . . . Crushed 1 | . 1 . . . Highest Temperature 271 | . 12 271 . 1 Average Temperature 77 | . 5 136 . 1 Received Heat Transfer 564 | . 384 180 . . Siege Activations . | . . . . . Martial Activations . | . . . . . Shielding Activations . | . . . . . Robots Disrupted . | . . . . . Combat Hostiles . | . . . . . Robots Corrupted . | . . . . . Combat Hostiles . | . . . . . Parts Fried . | . . . . . Impact Corruptions . | . . . . . Robots Melted . | . . . . . Combat Hostiles . | . . . . . Parts Melted . | . . . . . Heat Transferred . | . . . . . Parts Sabotaged . | . . . . . Parts Stolen . | . . . . . Parts Stripped . | . . . . . Power Chain Reactions . | . . . . . Alert | -11 -10 -10 -10 -9 ------- Run | Yrd Mat Min Exi Min Maximum Alert Level . | . . . . . Low Security (%) 100 | 100 100 100 . 100 Level 1 . | . . . . . Level 2 . | . . . . . Level 3 . | . . . . . Level 4 . | . . . . . Level 5 . | . . . . . High Security . | . . . . . Max Security . | . . . . . Peak Influence 126 | 10 126 73 . . Initial 33 | . . 33 . . Average 30 | 1 61 6 . . Influence Increases 650 | 40 540 70 . . Destroy 0b10 Robot/C 340 | . 280 60 . . Destroy 0b10 Robot/NC 75 | 40 35 . . . Destroy Leader 86 | . 76 10 . . Successful Hack 40 | . 40 . . . Select Force Hacks 60 | . 60 . . . Destroy Structure 4 | . 4 . . . Lose Combat Pursuer 45 | . 45 . . . Influence Decreases 650 | 40 454 156 . . Entered New Map 53 | . . 53 . . Time Decay 577 | 40 434 103 . . Lost Part 20 | . 20 . . . Squads Dispatched 7 | . 7 . . . Investigation 6 | . 6 . . . Extermination . | . . . . . Reinforcement 1 | . 1 . . . Assault . | . . . . . Garrison . | . . . . . Intercept . | . . . . . Searches Triggered . | . . . . . Construction Impeded . | . . . . . Haulers Reinforced . | . . . . . Active Scanning Responses . | . . . . . Cargo Convoy Interrupts . | . . . . . Stealth | -11 -10 -10 -10 -9 --------- Run | Yrd Mat Min Exi Min Distress Signals . | . . . . . Communications Jammed . | . . . . . Distress Signals . | . . . . . Times Spotted 32 | . 23 6 1 2 Peak Tracking Total 10 | . 4 6 10 1 Tactical Retreats 4 | . 2 . 1 1 Traps | -11 -10 -10 -10 -9 ------- Run | Yrd Mat Min Exi Min Traps Triggered 5 | . 5 . . . Indirectly . | . . . . . Trap Hack Attempts . | . . . . . Triggered . | . . . . . Disarmed . | . . . . . Reprogrammed . | . . . . . Reused . | . . . . . Traps Extracted . | . . . . . Installed . | . . . . . Triggered . | . . . . . Machines | -11 -10 -10 -10 -9 ---------- Run | Yrd Mat Min Exi Min Machines Disabled 2 | . . . 2 . Max in Single Turn 1 | . . . 1 . Machines Repaired . | . . . . . Machines Dismantled . | . . . . . Machines Sabotaged . | . . . . . Overloaded Fab Kills . | . . . . . Hacking | -11 -10 -10 -10 -9 --------- Run | Yrd Mat Min Exi Min Machines Accessed 13 | . 11 . 2 . Terminals 8 | . 8 . . . Fabricators . | . . . . . Repair Stations 1 | . 1 . . . Recycling Units 2 | . 2 . . . Scanalyzers . | . . . . . Garrison Access . | . . . . . Total Hacks 34 | . 32 . 2 . Successful 17 | . 15 . 2 . Failed 16 | . 16 . . . Catastrophic 1 | . 1 . . . Database Lockouts 1 | . 1 . . . Manual 23 | . 22 . 1 . Terminals 26 | . 26 . . . Fabricators . | . . . . . Repair Stations 2 | . 2 . . . Recycling Units 4 | . 4 . . . Scanalyzers . | . . . . . Garrison Access . | . . . . . Terminal Hacks 8 | . 6 . 2 . Record 1 | . . . 1 . Robot Analysis 1 | . 1 . . . Prototype ID Bank 2 | . 2 . . . Locate Traps 1 | . 1 . . . Hauler Manifests 1 | . 1 . . . Zone Layout 1 | . 1 . . . Proto ID Catalog 1 | . . . 1 . Fabricator Hacks . | . . . . . Repair Station Hacks 2 | . 2 . . . Scan Component 1 | . 1 . . . Repair 1 | . 1 . . . Recycling Unit Hacks . | . . . . . Scanalyzer . | . . . . . Garrison Access Hacks . | . . . . . Unauthorized Hacks 7 | . 7 . . . Terminals 5 | . 5 . . . Botnet 3 | . 3 . . . Operators 1 | . 1 . . . Skim 1 | . 1 . . . Fabricators . | . . . . . Repair Stations . | . . . . . Recycling Units 2 | . 2 . . . Tunnel 2 | . 2 . . . Scanalyzers . | . . . . . Garrison Access . | . . . . . Data Cores Recovered . | . . . . . Used . | . . . . . Hacking Detections 9 | . 9 . . . Full Trace Events . | . . . . . Feedback Events . | . . . . . Feedback Blocked . | . . . . . Robot Schematics Acquired . | . . . . . Robots Built . | . . . . . Authchips . | . . . . . Time . | . . . . . Total Robot Build Rating . | . . . . . Part Schematics Acquired . | . . . . . Parts Built . | . . . . . Authchips . | . . . . . Time . | . . . . . Total Part Build Rating . | . . . . . Part Studies Acquired . | . . . . . Parts Repaired 1 | . 1 . . . Time 26 | . 26 . . . Parts Recycled . | . . . . . Recycled Matter . | . . . . . Retrieved Matter . | . . . . . Retrieved Components . | . . . . . Parts Scanalyzed . | . . . . . Part Schematics Acquired . | . . . . . Parts Damaged . | . . . . . Bothacking | -11 -10 -10 -10 -9 ------------ Run | Yrd Mat Min Exi Min Used RIF Installer . | . . . . . Robots Hacked 4 | . 1 . 3 . Non-combat 3 | . 1 . 2 . Combat 1 | . . . 1 . Robot Hacks Applied 6 | . 3 . 3 . parse_system 4 | . 1 . 3 . no_distress 1 | . 1 . . . check_alert 1 | . 1 . . . Relay Couplers Released . | . . . . . Fabnet Peak Effective % . | . . . . . Robots Rewired . | . . . . . Allies Hacked . | . . . . . Hacks Repelled . | . . . . . Allies | -11 -10 -10 -10 -9 -------- Run | Yrd Mat Min Exi Min Total Allies 3 | . . . . 3 Largest Group 3 | . . . . 3 Highest-Rated Group 40 | . . . . 40 Highest-Rated Ally 16 | . . . . 16 Total Orders . | . . . . . Ally Attacks 4 | . . . . 4 Total Damage 14 | . . . . 14 Kills . | . . . . . Allies Corrupted . | . . . . . Allies Melted . | . . . . . Intel | -11 -10 -10 -10 -9 ------- Run | Yrd Mat Min Exi Min Active Infowar (turns) 4564 | 210 1945 986 645 778 Seismic 4564 | 210 1945 986 645 778 Robot Analysis Total 1 | . 1 . . . Derelict Logs Recovered 1 | . . 1 . . Drone Launches . | . . . . . Drone Recoveries . | . . . . . Exploration | -11 -10 -10 -10 -9 ------------- Run | Yrd Mat Min Exi Min Turns Passed 4880 | 248 1945 1250 645 792 Spaces Moved 2193 | 92 931 367 373 430 Core 1 | 1 . . . . Treads 2192 | 91 931 367 373 430 Legs . | . . . . . Wheels . | . . . . . Hover . | . . . . . Flight . | . . . . . Fastest Speed 50 | 50 160 160 160 160 Average Speed 159 | 158 160 160 160 160 Slowest Speed 160 | 160 160 160 160 160 Overloaded Moves . | . . . . . Propulsion Burnouts . | . . . . . Robots Hopped . | . . . . . Potential Cave-ins . | . . . . . Cave-ins Triggered . | . . . . . Exploration Rate (%) 66 | 8 98 76 70 78 Regions Visited 4 Branch Regions 3 Pre-discovered Areas 3 | . 2 . 1 . Known Exits Taken . | . . . . . Unknown Exits Taken 4 | 1 1 1 1 . Scrap Searched 2 | . . 1 . 1 Spaces Dug . | . . . . . Terrain Destroyed 3 | . 2 1 . . Melee . | . . . . . Projectile 3 | . 2 1 . . AOE . | . . . . . Terrain Rammed . | . . . . . Walls Destroyed . | . . . . . Machines Disabled . | . . . . . Actions | -11 -10 -10 -10 -9 --------- Run | Yrd Mat Min Exi Min Total 3312 | 138 1246 999 398 531 Wait 893 | 1 194 607 . 91 Move 2189 | 91 930 366 372 430 Hop . | . . . . . Pick Up 29 | 8 18 1 . 2 Fast Attach 7 | 5 2 . . . Attach 6 | 2 2 2 . . Detach . | . . . . . Swap 20 | . 11 3 2 4 Drop 14 | 1 9 3 . 1 Fire 140 | 30 73 15 21 1 Melee 6 | . 3 . 3 . Ram . | . . . . . Kick . | . . . . . Crush 8 | . 4 2 . 2 Escape Stasis . | . . . . . Rewire . | . . . . . Trap . | . . . . . Miscellaneous . | . . . . . Route ------- -11/Scrapyard -10/Materials (discovered 5 exits: [*Mat x3] / [*Min] / [*Sub]) -10/Mines (discovered 2 exits: [*Mat] / *Exi) -10/Exiles (discovered 2 exits: [*Min x2]) -9/Mines (discovered 1 exit: [*Mat]) History --------- Turn | Location | Event 51 | -11/Scrapyard | Discovered new exit (range 15) 249 | -11/Scrapyard | Entered Materials 307 | -10/Materials | Build established: Mutant 510 | -10/Materials | Discovered new exit (range 15) 769 | -10/Materials | Central database locked down 849 | -10/Materials | Derelicts attacked the area 980 | -10/Materials | Discovered new exit (range 14) 1179 | -10/Materials | Discovered new exit (range 9) 1392 | -10/Materials | Discovered new exit (range 10) 1744 | -10/Materials | Discovered new exit (range 11) 1951 | -10/Materials | Repaired Ion Engine? 2194 | -10/Materials | Entered Mines 2195 | -10/Mines | Assembled infested the area 2200 | -10/Mines | Assisted by a Guerilla fighting off Assembled 2224 | -10/Mines | Core integrity fell below 50% 2254 | -10/Mines | Core integrity fell below 20% 2271 | -10/Mines | Learned 8 Materials zone layouts 2277 | -10/Mines | Joined a pair of Derelicts in attacking an 0b10 outpost 2329 | -10/Mines | Discovered new exit (range 11) 2350 | -10/Mines | Deemed a non-threat by the Exiles lab entrance 2839 | -10/Mines | Discovered new exit (range 5) 3444 | -10/Mines | Entered Exiles 3468 | -10/Exiles | Discovered new exit (range 15) 3488 | -10/Exiles | Met 8R-AWN 3513 | -10/Exiles | Met EX-HEX 3575 | -10/Exiles | Met EX-DEC 3620 | -10/Exiles | Learned location of Zion (-6) 3646 | -10/Exiles | Met EX-BIN 3668 | -10/Exiles | Aligned with FarCom system 3670 | -10/Exiles | Given EX-Vault access code 3708 | -10/Exiles | Opened EX-Vault 3746 | -10/Exiles | Warned to stay clear of 0b10 Research branches 4058 | -10/Exiles | Attacked by the Exiles 4075 | -10/Exiles | Discovered new exit (range 10) 4089 | -10/Exiles | Entered Mines 4216 | -9/Mines | Received a Rocket Launcher from a helpful Derelict 4422 | -9/Mines | A weapon hastily lodged in a ceiling crevice suddenly fell to the ground 4710 | -9/Mines | Discovered new exit (range 14) 4742 | -9/Mines | Assisted by bots powering up and referring to "LRC-V3" 4881 | -9/Mines | Destroyed by YI-UF0 with YI-UF0's Doublenader Last Messages --------------- 04449_ Found 70 Matter. 04450_ Acquired 70 matter. 04503_ Acquired 6 matter. 04534_ K-01 Serf collects debris. 04710_ EXIT=FOUND 04742_ Trooper 2a: "Hello LRC-V3. What is your command?" 04742_ Mercenary 2a: "Hello LRC-V3. What is your command?" 04742_ Trooper 2b: "Hello LRC-V3. What is your command?" 04846_ K-01 Serf collects debris. 04850_ U-05 Engineer builds a Wall. 04852_ K-01 Serf collects debris. 04856_ Extracted 44 matter. 04857_ U-05 Engineer lays Concrete. 04869_ Trooper 2b destroyed. 04871_ Trooper 2a destroyed. 04879_ Mercenary 2a destroyed. 04880_ YI-UF0 mumbles something. Map ----- +----------------------------------------------------+ | | | | | | | | | | | | | | | | | | | | | | | | | | | | | | | | | | | ?????????????????????????????????????????????????? | | ?####?????????????????????################???????? | | ## ##?????########???????# ###?????? | | # ####### ######### ###??## | | ## ########## ### | | #????????# | | # """ ###### ######????????## # | | # """ ##????# #####??????????### ## | | # """ ####????## @ #????????????### #? | | ####???????# #????????????## #? | | ##??????????# #????????????# #? | | # ##??####?????# %* #???????????## ### | | ## ##??? ##????# #???????????# = # | | ## ###??? #????# ### ##??????????###* [ | | ## #?#### #????# #??# ##???????????# ## | | ## #?# #????# #?? ???????????# ##? | | ## #? ??????## #?? =* ??????# #?? | | ## ### #??????????# ##?? = ##????? ?? | | #????????????###??? [ g #????? ?? | | ###### #?????????????????? [ #???? ?? | | ###????# #?????????????????? ##??? ?? | | ???????# #????????????????? = # ???### ?? | | ??????? %#?????????????????# #????## ?? | | ??????? #????????????????? = % ??????## ?? | | ???????# ?????????????????## ! % ????????# ?? | | ??????? ?????????????????? ##???????? ?? | | ??????? #?????????????????? #????????? ## | | ??????? ???????????????????= ##????????? | | ??????? ??????????????????? ???????????# | | ??????? ??????????????????% %= ??????????# | | ??????? ?????????????????? # ??????????# | | ??????? ?????????????????? ####??????????# | | ??????? ?????????????????? ### ##????????####?# | +----------------------------------------------------+ Best States ------------- Heat Dissipation 25 Energy Generation 12 Energy Capacity 265 Matter Stores 300 Matter Capacity 300 Sight Range 16 Terrain Scan Density 10 Armor Coverage 150 Evasion (%) 40 Recoil Reduction 2 Item Schematics ----------------- None Robot Schematics ------------------ None Fabricated ------------ Nothing Repaired ---------- Ion Engine | 35% | -10/Materials Studied --------- None Alien Tech Used ----------------- None Achievements -------------- None Challenges ------------ None Game ------ Seed AccelerationGaussInsulator Manual? 0 Play Time 00:23:37 Cumulative 558.2 hours Start 2026.02.07 @ 10:03:20 End 2026.02.07 @ 10:26:34 Sessions 1 Manual Loads 0 Difficulty Rogue Special Mode None Game No. 322 Rogue 322 Adventurer 0 Explorer 0 Win Type - Total 18 Types 11/0/4/0/0/0/1/2/0/0 Lore% 87 Gallery% 84 Achievement% 68 Wizard Run 0 Options --------- Layout 1 ASCII 0 Keyboard 0 Movement Numpad Keybinds 0 Fullscreen 2 Font 24/Smallcaps Map View 50x40 Zoom Use 0% Tactical HUD 1 Map Filters NONE Filters NONE Steam 1 RUN: 45c98d6e-fba2-4bee-932f-54077d75e7d5